[Event "MČR družstev mladších žáků 2024"]
[Site "Harrachov, Czech Republic"]
[Date "2024.06.16"]
[Round "8.5"]
[White "Prikryl Daniel"]
[Black "Kusova Nikola"]
[Result "0-1"]
[TimeControl "25+10"]
[WhiteFideId "23745770"]
[BlackFideId "23733705"]
[WhiteElo "1199"]
[BlackElo "1353"]

1. e4 {[%clk 00:25:18]} e5 {[%clk 00:25:16]} {[%emt 00:00:05]} 2. Nf3 {[%clk
00:25:21]} {[%emt 00:00:07]} Nf6 {[%clk 00:25:23]} {[%emt 00:00:02]} 3. Nxe5
{[%clk 00:25:26]} {[%emt 00:00:06]} d6 {[%clk 00:25:32]} {[%emt 00:00:02]} 4.
Nf3 {[%clk 00:25:32]} {[%emt 00:00:04]} Nxe4 {[%clk 00:25:39]} {[%emt
00:00:02]} 5. Qe2 {[%clk 00:25:35]} {[%emt 00:00:07]} Qe7 {[%clk 00:25:47]}
{[%emt 00:00:02]} 6. Nc3 {[%clk 00:25:24]} {[%emt 00:00:21]} Nf6 {[%clk
00:25:43]} {[%emt 00:00:14]} 7. Qxe7+ {[%clk 00:25:26]} {[%emt 00:00:08]} Bxe7
{[%clk 00:25:51]} {[%emt 00:00:02]} 8. Bc4 {[%clk 00:25:22]} {[%emt 00:00:13]}
O-O {[%clk 00:25:19]} {[%emt 00:00:42]} 9. O-O {[%clk 00:25:22]} {[%emt
00:00:11]} Be6 {[%clk 00:24:49]} {[%emt 00:00:40]} 10. Bb3 {[%clk 00:25:01]}
{[%emt 00:00:30]} Nc6 {[%clk 00:24:18]} {[%emt 00:00:42]} 11. d4 {[%clk
00:24:19]} {[%emt 00:00:49]} d5 {[%clk 00:23:22]} {[%emt 00:01:09]} 12. Bf4
{[%clk 00:23:12]} {[%emt 00:01:12]} Rac8 {[%clk 00:20:49]} {[%emt 00:02:48]} 13.
Rfe1 {[%clk 00:22:32]} {[%emt 00:00:47]} Bb4 {[%clk 00:18:54]} {[%emt
00:02:07]} 14. Re3 {[%clk 00:21:38]} {[%emt 00:00:54]} Bxc3 {[%clk 00:17:54]}
{[%emt 00:01:20]} 15. Rxc3 {[%clk 00:21:36]} {[%emt 00:00:12]} Ne4 {[%clk
00:18:00]} {[%emt 00:00:04]} 16. Re3 {[%clk 00:20:06]} {[%emt 00:01:24]} Na5
{[%clk 00:15:27]} {[%emt 00:02:59]} 17. h3 {[%clk 00:19:09]} {[%emt 00:01:06]}
Nxb3 {[%clk 00:15:14]} {[%emt 00:00:25]} 18. axb3 {[%clk 00:19:08]} {[%emt
00:00:11]} a6 {[%clk 00:15:06]} {[%emt 00:00:18]} 19. c4 {[%clk 00:18:31]}
{[%emt 00:00:42]} c5 {[%clk 00:12:35]} {[%emt 00:02:46]} 20. Rd1 {[%clk
00:15:45]} {[%emt 00:02:52]} Nf6 {[%clk 00:09:26]} {[%emt 00:03:23]} 21. Rc1
{[%clk 00:14:35]} {[%emt 00:01:13]} dxc4 {[%clk 00:09:15]} {[%emt 00:00:26]} 22.
bxc4 {[%clk 00:12:56]} {[%emt 00:01:49]} cxd4 {[%clk 00:09:21]} {[%emt
00:00:05]} 23. Nxd4 {[%clk 00:12:50]} {[%emt 00:00:17]} Bxc4 {[%clk 00:09:29]}
{[%emt 00:00:02]} 24. Rec3 {[%clk 00:12:45]} {[%emt 00:00:13]} Be6 {[%clk
00:07:32]} {[%emt 00:02:09]} 25. Nxe6 {[%clk 00:11:55]} {[%emt 00:00:59]} Rxc3
{[%clk 00:07:40]} {[%emt 00:00:02]} 26. Rxc3 {[%clk 00:11:49]} {[%emt
00:00:15]} fxe6 {[%clk 00:07:48]} {[%emt 00:00:02]} 27. Rb3 {[%clk 00:11:23]}
{[%emt 00:00:33]} b5 {[%clk 00:06:39]} {[%emt 00:01:23]} 28. Ra3 {[%clk
00:11:08]} {[%emt 00:00:22]} Nd5 {[%clk 00:05:35]} {[%emt 00:01:17]} 29. Bg3
{[%clk 00:10:46]} {[%emt 00:00:27]} Ra8 {[%clk 00:05:34]} {[%emt 00:00:16]} 30.
Kf1 {[%clk 00:10:32]} {[%emt 00:00:23]} Kf7 {[%clk 00:05:24]} {[%emt 00:00:21]}
31. Ke2 {[%clk 00:10:34]} {[%emt 00:00:08]} Ke7 {[%clk 00:05:28]} {[%emt
00:00:05]} 32. Kd3 {[%clk 00:10:35]} {[%emt 00:00:05]} Rd8 {[%clk 00:05:00]}
{[%emt 00:00:33]} 33. Ke4 {[%clk 00:10:24]} {[%emt 00:00:28]} Nf6+ {[%clk
00:04:50]} {[%emt 00:00:23]} 34. Kf4 {[%clk 00:09:45]} {[%emt 00:00:47]} Nh5+
{[%clk 00:04:49]} {[%emt 00:00:13]} 35. Ke3 {[%clk 00:09:15]} {[%emt 00:00:38]}
Nxg3 {[%clk 00:04:57]} {[%emt 00:00:05]} 36. fxg3 {[%clk 00:09:23]} {[%emt
00:00:01]} Rd6 {[%clk 00:05:03]} {[%emt 00:00:04]} 37. b4 {[%clk 00:09:21]}
{[%emt 00:00:12]} e5 {[%clk 00:05:02]} {[%emt 00:00:11]} 38. Rc3 {[%clk
00:09:19]} {[%emt 00:00:07]} Kf6 {[%clk 00:04:30]} {[%emt 00:00:45]} 39. g4
{[%clk 00:08:55]} {[%emt 00:00:33]} g5 {[%clk 00:04:34]} {[%emt 00:00:10]} 40.
Rb3 {[%clk 00:08:46]} {[%emt 00:00:17]} Ke6 {[%clk 00:04:23]} {[%emt 00:00:22]}
41. Rb2 {[%clk 00:08:41]} {[%emt 00:00:13]} Rd4 {[%clk 00:04:13]} {[%emt
00:00:23]} 42. Rb3 {[%clk 00:08:27]} {[%emt 00:00:24]} Kd5 {[%clk 00:03:27]}
{[%emt 00:00:57]} 43. Rb2 {[%clk 00:08:05]} {[%emt 00:00:30]} e4 {[%clk
00:02:48]} {[%emt 00:00:52]} 44. Rb3 {[%clk 00:07:25]} {[%emt 00:00:50]} Kc4
{[%clk 00:02:48]} {[%emt 00:00:09]} 45. Rb2 {[%clk 00:07:30]} {[%emt 00:00:05]}
Kc3 {[%clk 00:02:48]} {[%emt 00:00:09]} 46. Ra2 {[%clk 00:07:03]} {[%emt
00:00:32]} Rxb4 {[%clk 00:01:40]} {[%emt 00:01:24]} 47. Rxa6 {[%clk 00:07:03]}
{[%emt 00:00:10]} Ra4 {[%clk 00:01:45]} {[%emt 00:00:05]} 48. Rc6+ {[%clk
00:06:59]} {[%emt 00:00:13]} Rc4 {[%clk 00:01:45]} {[%emt 00:00:12]} 49. Ra6
{[%clk 00:06:33]} {[%emt 00:00:34]} b4 {[%clk 00:01:44]} {[%emt 00:00:12]} 50.
Ra1 {[%clk 00:06:12]} {[%emt 00:00:30]} b3 {[%clk 00:01:43]} {[%emt 00:00:11]}
51. Rc1+ {[%clk 00:06:15]} {[%emt 00:00:07]} Kb4 {[%clk 00:01:52]} {[%emt
00:00:02]} 52. Rb1 {[%clk 00:06:21]} {[%emt 00:00:03]} Ka3 {[%clk 00:01:51]}
{[%emt 00:00:10]} 53. Ra1+ {[%clk 00:06:23]} {[%emt 00:00:09]} Kb2 {[%clk
00:02:00]} 54. Rd1 {[%clk 00:06:26]} {[%emt 00:00:03]} Rc2 {[%clk 00:01:56]}
{[%emt 00:00:18]} 55. Kxe4 {[%clk 00:06:28]} {[%emt 00:00:09]} Ka2 {[%clk
00:02:03]} {[%emt 00:00:01]} 56. Kd3 {[%clk 00:06:36]} {[%emt 00:00:04]} Rxg2
{[%clk 00:02:06]} {[%emt 00:00:07]} 57. Kc3 {[%clk 00:06:35]} {[%emt 00:00:11]}
Rg3+ {[%clk 00:01:55]} {[%emt 00:00:21]} 58. Kd2 {[%clk 00:06:37]} {[%emt
00:00:04]} b2 {[%clk 00:02:02]} {[%emt 00:00:07]} 59. Kc2 {[%clk 00:06:08]}
{[%emt 00:00:39]} Rg2 {[%clk 00:02:10]} {[%emt 00:00:02]} 60. Kc3 {[%clk
00:06:13]} {[%emt 00:00:03]} b1=Q {[%clk 00:02:16]} {[%emt 00:00:05]} 0-1



[ePGN "0.1;DGT LiveChess/2.2.6"]

[Event "MČR družstev mladších žáků 2024"]
[Site "Harrachov, Czech Republic"]
[Date "2024.06.16"]
[Round "8.6"]
[White "Soukup Erik"]
[Black "Pecinka Lukas"]
[Result "1-0"]
[TimeControl "25+10"]
[WhiteFideId "23741910"]
[BlackFideId "23763574"]
[WhiteElo "1149"]
[BlackElo "1121"]

1. d4 {[%clk 00:25:17]} {[%emt 00:00:03]} d5 {[%clk 00:25:19]} {[%emt
00:00:01]} 2. e3 {[%clk 00:25:26]} Nf6 {[%clk 00:25:24]} {[%emt 00:00:05]} 3.
Bd3 {[%clk 00:25:34]} {[%emt 00:00:02]} Nc6 {[%clk 00:25:28]} {[%emt 00:00:06]}
4. f4 {[%clk 00:25:41]} {[%emt 00:00:03]} Bg4 {[%clk 00:25:35]} {[%emt
00:00:03]} 5. Nf3 {[%clk 00:25:46]} {[%emt 00:00:04]} e6 {[%clk 00:25:41]}
{[%emt 00:00:04]} 6. O-O {[%clk 00:25:45]} {[%emt 00:00:11]} Bd6 {[%clk
00:25:49]} {[%emt 00:00:02]} 7. Nbd2 {[%clk 00:25:50]} {[%emt 00:00:05]} O-O
{[%clk 00:25:55]} {[%emt 00:00:04]} 8. b3 {[%clk 00:25:57]} {[%emt 00:00:03]}
Bb4 {[%clk 00:25:28]} {[%emt 00:00:37]} 9. Bb2 {[%clk 00:25:41]} {[%emt
00:00:26]} Bxd2 {[%clk 00:25:16]} {[%emt 00:00:23]} 10. Qxd2 {[%clk 00:25:46]}
{[%emt 00:00:05]} Ne4 {[%emt 00:00:03]} 11. Bxe4 {[%clk 00:24:52]} {[%emt
00:01:02]} dxe4 {[%emt 00:00:02]} 12. Ne5 {[%emt 00:00:01]} Bf5 {[%clk
00:25:19]} {[%emt 00:00:12]} 13. Nxc6 {[%clk 00:24:50]} {[%emt 00:00:13]} bxc6
{[%clk 00:25:27]} {[%emt 00:00:02]} 14. Qc3 {[%clk 00:24:42]} {[%emt 00:00:18]}
Qd5 {[%clk 00:25:23]} {[%emt 00:00:14]} 15. Rae1 {[%clk 00:24:13]} {[%emt
00:00:39]} Rab8 {[%clk 00:25:10]} {[%emt 00:00:23]} 16. a4 {[%clk 00:23:47]}
{[%emt 00:00:35]} a5 {[%clk 00:25:03]} {[%emt 00:00:18]} 17. h3 {[%clk
00:23:17]} {[%emt 00:00:40]} Rb4 {[%clk 00:24:55]} {[%emt 00:00:16]} 18. Ba3
{[%clk 00:23:22]} {[%emt 00:00:06]} Rxb3 {[%clk 00:24:27]} {[%emt 00:00:39]} 19.
Qxb3 {[%clk 00:23:17]} {[%emt 00:00:14]} Qxb3 {[%clk 00:24:35]} {[%emt
00:00:03]} 20. cxb3 {[%clk 00:23:25]} {[%emt 00:00:02]} Rb8 {[%clk 00:24:43]}
{[%emt 00:00:01]} 21. Rb1 {[%clk 00:23:24]} {[%emt 00:00:12]} h6 {[%clk
00:24:40]} {[%emt 00:00:14]} 22. Rfc1 {[%clk 00:23:27]} {[%emt 00:00:06]} Rb6
{[%clk 00:24:38]} {[%emt 00:00:13]} 23. Bc5 {[%clk 00:23:24]} {[%emt 00:00:12]}
Rb8 {[%clk 00:24:43]} {[%emt 00:00:04]} 24. b4 {[%clk 00:23:25]} {[%emt
00:00:10]} Ra8 {[%clk 00:24:41]} {[%emt 00:00:12]} 25. bxa5 {[%clk 00:22:35]}
{[%emt 00:01:01]} Rxa5 {[%clk 00:24:49]} {[%emt 00:00:02]} 26. Bb4 {[%clk
00:22:36]} {[%emt 00:00:08]} Ra6 {[%clk 00:24:49]} {[%emt 00:00:09]} 27. a5
{[%clk 00:22:40]} {[%emt 00:00:06]} f6 {[%clk 00:24:36]} {[%emt 00:00:23]} 28.
Rc5 {[%clk 00:22:44]} {[%emt 00:00:06]} Kh7 {[%clk 00:24:02]} {[%emt 00:00:45]}
29. Rbc1 {[%clk 00:22:35]} {[%emt 00:00:19]} Ra8 {[%clk 00:24:08]} {[%emt
00:00:03]} 30. Rxc6 {[%clk 00:22:28]} {[%emt 00:00:17]} Rb8 {[%clk 00:24:15]}
{[%emt 00:00:03]} 31. Bc5 {[%clk 00:21:54]} {[%emt 00:00:42]} Rc8 {[%clk
00:24:21]} {[%emt 00:00:06]} 32. a6 {[%clk 00:21:57]} {[%emt 00:00:07]} Ra8
{[%clk 00:24:21]} {[%emt 00:00:11]} 33. a7 {[%clk 00:22:01]} {[%emt 00:00:06]}
e5 {[%clk 00:24:29]} {[%emt 00:00:02]} 34. Rb1 {[%clk 00:21:59]} {[%emt
00:00:12]} Bd7 {[%clk 00:24:24]} {[%emt 00:00:15]} 35. Rxc7 {[%clk 00:22:01]}
{[%emt 00:00:08]} Bf5 {[%clk 00:24:17]} {[%emt 00:00:18]} 36. Rb8 {[%clk
00:21:56]} {[%emt 00:00:14]} Rxa7 {[%clk 00:24:06]} {[%emt 00:00:22]} 37. Bxa7
{[%clk 00:22:03]} {[%emt 00:00:03]} Kg6 {[%clk 00:24:12]} {[%emt 00:00:04]} 38.
Rbb7 {[%clk 00:22:09]} {[%emt 00:00:03]} Kh5 {[%clk 00:24:17]} {[%emt
00:00:07]} 39. Rxg7 {[%clk 00:22:12]} {[%emt 00:00:07]} Bc8 {[%clk 00:24:21]}
{[%emt 00:00:05]} 40. g4+ {[%clk 00:22:15]} {[%emt 00:00:08]} Kh4 {[%clk
00:24:26]} {[%emt 00:00:05]} 41. Rbf7 {[%clk 00:22:11]} {[%emt 00:00:12]} Kg3
{[%clk 00:24:32]} {[%emt 00:00:06]} 42. fxe5 {[%clk 00:22:11]} {[%emt
00:00:11]} fxe5 {[%clk 00:24:24]} {[%emt 00:00:18]} 43. g5 {[%clk 00:21:57]}
{[%emt 00:00:24]} h5 {[%clk 00:24:23]} {[%emt 00:00:10]} 44. Rh7 {[%clk
00:22:04]} {[%emt 00:00:03]} Be6 {[%clk 00:24:29]} {[%emt 00:00:03]} 45. g6
{[%clk 00:21:56]} {[%emt 00:00:21]} h4 {[%clk 00:24:29]} {[%emt 00:00:10]} 46.
Rf6 {[%clk 00:21:58]} {[%emt 00:00:07]} Bg8 {[%clk 00:24:32]} {[%emt 00:00:07]}
47. Rh8 {[%clk 00:22:05]} {[%emt 00:00:03]} Bd5 {[%clk 00:24:37]} {[%emt
00:00:06]} 48. g7 {[%clk 00:22:14]} {[%emt 00:00:02]} Kxh3 {[%clk 00:24:42]}
{[%emt 00:00:05]} 49. g8=Q {[%clk 00:22:11]} {[%emt 00:00:12]} Bxg8 {[%clk
00:24:51]} {[%emt 00:00:02]} 50. Rxg8 {[%clk 00:22:18]} {[%emt 00:00:04]} exd4
{[%clk 00:24:53]} {[%emt 00:00:08]} 51. exd4 {[%clk 00:22:18]} {[%emt
00:00:10]} e3 {[%clk 00:25:02]} {[%emt 00:00:01]} 52. Rf3# {[%clk 00:22:26]}
{[%emt 00:00:03]} 1-0



[ePGN "0.1;DGT LiveChess/2.2.6"]

[Event "MČR družstev mladších žáků 2024"]
[Site "Harrachov, Czech Republic"]
[Date "2024.06.16"]
[Round "8.7"]
[White "Vancakova Veronika"]
[Black "Policar Martin"]
[Result "1-0"]
[TimeControl "25+10"]
[WhiteFideId "23731907"]
[BlackFideId "23734868"]
[WhiteElo "1437"]
[BlackElo "1646"]

1. d4 {[%clk 00:25:18]} {[%emt 00:00:02]} Nf6 {[%clk 00:25:18]} {[%emt
00:00:01]} 2. c4 {[%clk 00:25:27]} {[%emt 00:00:02]} e6 {[%clk 00:25:20]}
{[%emt 00:00:07]} 3. Nc3 {[%clk 00:25:35]} {[%emt 00:00:02]} Bb4 {[%clk
00:25:28]} {[%emt 00:00:02]} 4. e3 {[%clk 00:25:43]} {[%emt 00:00:02]} O-O
{[%clk 00:25:35]} {[%emt 00:00:04]} 5. Nge2 {[%clk 00:25:41]} {[%emt 00:00:12]}
b6 {[%clk 00:25:43]} {[%emt 00:00:02]} 6. a3 {[%clk 00:25:49]} {[%emt
00:00:02]} Bxc3+ {[%clk 00:25:43]} {[%emt 00:00:09]} 7. Nxc3 {[%clk 00:25:57]}
{[%emt 00:00:02]} Bb7 {[%clk 00:25:50]} {[%emt 00:00:02]} 8. Bd3 {[%clk
00:24:33]} {[%emt 00:01:34]} Bxg2 {[%clk 00:25:22]} {[%emt 00:00:38]} 9. Rg1
{[%clk 00:24:37]} {[%emt 00:00:07]} Bb7 {[%clk 00:25:07]} {[%emt 00:00:24]} 10.
e4 {[%clk 00:23:40]} {[%emt 00:01:07]} d5 {[%clk 00:22:54]} {[%emt 00:02:24]}
11. cxd5 {[%clk 00:21:21]} {[%emt 00:02:29]} exd5 {[%clk 00:23:01]} {[%emt
00:00:03]} 12. Bh6 {[%clk 00:15:27]} {[%emt 00:06:04]} Ne8 {[%clk 00:22:26]}
{[%emt 00:00:44]} 13. Qg4 {[%clk 00:13:31]} {[%emt 00:02:07]} Qf6 {[%clk
00:21:34]} {[%emt 00:01:02]} 14. Qh3 {[%clk 00:05:42]} {[%emt 00:07:59]} Kh8
{[%clk 00:18:00]} {[%emt 00:03:44]} 15. Be3 {[%clk 00:05:31]} {[%emt 00:00:21]}
g6 {[%clk 00:15:54]} {[%emt 00:02:16]} 16. e5 {[%clk 00:05:08]} {[%emt
00:00:33]} Qe6 {[%clk 00:15:48]} {[%emt 00:00:16]} 17. Qh6 {[%clk 00:04:42]}
{[%emt 00:00:37]} Ng7 {[%clk 00:15:27]} {[%emt 00:00:31]} 18. O-O-O {[%clk
00:02:47]} {[%emt 00:02:05]} Nd7 {[%clk 00:14:32]} {[%emt 00:01:05]} 19. h4
{[%clk 00:02:15]} {[%emt 00:00:42]} Nf5 {[%clk 00:13:11]} {[%emt 00:01:31]} 20.
Bxf5 {[%clk 00:02:07]} {[%emt 00:00:19]} Qxf5 {[%clk 00:13:18]} {[%emt
00:00:02]} 21. Rg5 {[%clk 00:02:02]} {[%emt 00:00:14]} Qe6 {[%clk 00:11:22]}
{[%emt 00:02:07]} 22. Rdg1 {[%clk 00:02:07]} {[%emt 00:00:06]} Rg8 {[%clk
00:10:32]} {[%emt 00:00:59]} 23. f4 {[%clk 00:01:17]} {[%emt 00:00:59]} f5
{[%clk 00:08:47]} {[%emt 00:01:56]} 24. h5 {[%clk 00:00:29]} {[%emt 00:00:58]}
Nf8 {[%clk 00:08:06]} {[%emt 00:00:51]} 25. Ne2 {[%clk 00:00:26]} {[%emt
00:00:13]} Qf7 {[%clk 00:06:17]} {[%emt 00:01:59]} 26. Ng3 {[%clk 00:00:22]}
{[%emt 00:00:14]} Ne6 {[%clk 00:03:39]} {[%emt 00:02:48]} 27. hxg6 {[%clk
00:00:23]} {[%emt 00:00:08]} Rxg6 {[%clk 00:03:44]} {[%emt 00:00:05]} 28. Rxg6
{[%emt 00:00:10]} Qxg6 {[%clk 00:03:52]} 29. Qh3 {[%clk 00:00:20]} {[%emt
00:00:14]} Rf8 {[%clk 00:03:09]} {[%emt 00:00:53]} 30. Nh5 {[%clk 00:00:21]}
{[%emt 00:00:09]} Qh6 {[%clk 00:02:36]} {[%emt 00:00:43]} 31. Qf3 {[%clk
00:00:24]} {[%emt 00:00:07]} c5 {[%clk 00:01:29]} {[%emt 00:01:17]} 32. Nf6
{[%clk 00:00:17]} {[%emt 00:00:17]} cxd4 {[%clk 00:00:47]} {[%emt 00:00:53]} 33.
Rh1 {[%clk 00:00:20]} {[%emt 00:00:06]} Qg6 {[%clk 00:00:26]} {[%emt 00:00:30]}
34. Rxh7+ {[%clk 00:00:24]} {[%emt 00:00:07]} Qxh7 {[%clk 00:00:35]} {[%emt
00:00:01]} 35. Nxh7 {[%clk 00:00:32]} {[%emt 00:00:01]} Kxh7 {[%clk 00:00:33]}
{[%emt 00:00:12]} 36. Bd2 {[%clk 00:00:20]} {[%emt 00:00:22]} Rc8+ {[%clk
00:00:34]} {[%emt 00:00:08]} 37. Kd1 {[%clk 00:00:22]} {[%emt 00:00:09]} Kg6
{[%clk 00:00:35]} {[%emt 00:00:09]} 38. Qg3+ {[%clk 00:00:30]} {[%emt
00:00:02]} Kh6 {[%clk 00:00:44]} {[%emt 00:00:02]} 39. Qh4+ {[%clk 00:00:37]}
{[%emt 00:00:02]} Kg7 {[%clk 00:00:44]} {[%emt 00:00:11]} 40. Qf6+ {[%clk
00:00:45]} {[%emt 00:00:02]} Kh7 {[%clk 00:00:52]} 41. Qxf5+ {[%clk 00:00:49]}
{[%emt 00:00:07]} Kh8 {[%clk 00:00:56]} {[%emt 00:00:06]} 42. Qxe6 {[%clk
00:00:55]} {[%emt 00:00:05]} Rc7 {[%clk 00:00:59]} {[%emt 00:00:07]} 43. Qh6+
{[%clk 00:00:48]} {[%emt 00:00:16]} Kg8 {[%clk 00:01:07]} {[%emt 00:00:03]} 44.
Qg6+ {[%clk 00:00:43]} {[%emt 00:00:15]} Kh8 {[%clk 00:01:13]} {[%emt
00:00:05]} 45. Qd3 {[%clk 00:00:48]} {[%emt 00:00:05]} Rh7 {[%clk 00:00:58]}
{[%emt 00:00:25]} 46. Qxd4 {[%clk 00:00:48]} {[%emt 00:00:10]} Rh1+ {[%clk
00:01:03]} {[%emt 00:00:05]} 47. Kc2 {[%clk 00:00:47]} {[%emt 00:00:12]} Kg8
{[%clk 00:00:58]} {[%emt 00:00:15]} 48. e6 {[%clk 00:00:49]} {[%emt 00:00:08]}
Rh7 {[%clk 00:00:59]} {[%emt 00:00:09]} 49. f5 {[%clk 00:00:41]} {[%emt
00:00:18]} Rc7+ {[%clk 00:00:59]} {[%emt 00:00:10]} 50. Bc3 {[%clk 00:00:36]}
{[%emt 00:00:15]} Rh7 {[%clk 00:01:03]} {[%emt 00:00:05]} 51. f6 {[%clk
00:00:30]} {[%emt 00:00:17]} Kf8 {[%clk 00:00:52]} {[%emt 00:00:21]} 52. Bb4+
{[%clk 00:00:32]} {[%emt 00:00:07]} Kg8 {[%clk 00:00:46]} {[%emt 00:00:15]} 53.
Qg4+ {[%clk 00:00:24]} {[%emt 00:00:18]} Kh8 {[%clk 00:00:51]} {[%emt
00:00:06]} 54. f7 {[%clk 00:00:26]} {[%emt 00:00:08]} Rh2+ {[%clk 00:00:54]}
{[%emt 00:00:07]} 55. Bd2 {[%clk 00:00:25]} {[%emt 00:00:11]} 1-0



[ePGN "0.1;DGT LiveChess/2.2.6"]